Cogmind - Beta 17 @@@ ROGUE MODE // 2026.06.23 @ 10:52:17 Player: arkn Result: Destroyed by S-43 Plague with Heavy Machine Gun Performance ------------- Evolutions (7) 3500 Regions Visited (20) 4000 Robots Destroyed (147) 735 Value Destroyed (4875) 4875 Prototype IDs (38) 760 Alien Tech Used (0) 0 Bonus (13971) 13971 TOTAL SCORE: 27841 Bonus ------- High Alert Combat Kills 108 Follower Combat Kills 1478 Prayed to X0-1V1 5000 Major X0-1V1 Interference 6800 Entered Garrisons 200 Used RIF Installer 500 Aligned with FarCom 300 Friendly Fire -415 Cogmind --------- Core Integrity 0/1350 Matter 355/1000 Energy 100/100 System Corruption 18% Temperature Cool (0) Movement Core (150) Ox2 Location -3/Research Parts ------- > --- POWER (2) -------- (None) > --- PROPULSION (8) --- (None) > --- UTILITY (8) ------ Advanced Melee Analysis Suite Advanced Target Analyzer Graphene Brace Advanced Corruption Screen > --- WEAPON (6) ------- Enhanced Force Lance > --- INVENTORY (5) ---- Advanced Signal Interpreter Ragnarok Missile Launcher Peak State ------------ > --- POWER ------------ Heavy Antimatter Reactor Cooled Antimatter Reactor > --- PROPULSION ------- Impulse Thruster Impulse Thruster Impulse Thruster Impulse Thruster Impulse Thruster Impulse Thruster > --- UTILITY ---------- Advanced Cooling System Improved Trap Scanner Advanced Terrain Scan Processor Advanced Reaction Control System Improved Phase Shifter Improved Core Shielding Graphene Brace X0-1V1's Piety Tracker > --- WEAPON ----------- Linear Accelerator Scimitar of Distortion Heavy Scimitar of Distortion > --- INVENTORY -------- Reaction Control System Advanced KE Penetrator Mass Driver Mass Driver Ragnarok Missile Launcher [Rating: 139] Favorites ----------- Power Improved Ion Engine Engine Improved Ion Engine Power Core Light Nuclear Core Reactor Heavy Antimatter Reactor Propulsion Carbon-fiber Leg Treads Light Treads Leg Carbon-fiber Leg Wheel Compact Wheel Hover Unit Gravmag Array Flight Unit Impulse Thruster Utility X0-1V1's Piety Tracker Device X0-1V1's Piety Tracker Storage High-capacity Storage Unit Processor Advanced Targeting Computer Protection Improved Core Shielding Weapon Shotgun Energy Gun Plasma Rifle Ballistic Gun Shotgun Ballistic Cannon Heavy Assault Cannon Launcher Rocket Launcher Impact Weapon Heavy Mace Slashing Weapon Scimitar of Distortion Piercing Weapon Enhanced Force Lance Build | -11 -10 -10 -10 -9 -8 -8 -8 -8 -8 -8 -6 -6 -6 -5 -5 -5 -5 -5 -4 -3 ------- Run | Yrd Mat Min Exi Min Mat Gar Mat Sto Rec Scr Fac Was Fac Fac Was Fac Upp Upp Fac Res Slots Evolved 14 | . . . . . 4 . . . . . 4 . . 2 . . . . 2 2 Power . | . . . . . . . . . . . . . . . . . . . . . Propulsion 6 | . . . . . 2 . . . . . . . . 2 . . . . . 2 Utility 6 | . . . . . 1 . . . . . 3 . . . . . . . 2 . Weapon 2 | . . . . . 1 . . . . . 1 . . . . . . . . . Parts Attached 132 | 6 9 2 . 5 4 8 4 7 . 2 24 1 27 5 1 1 1 . 18 7 Power 14 | 1 1 . . 1 . 2 1 . . . 3 . 3 . 1 . . . 1 . Engine 7 | 1 1 . . 1 . 1 1 . . . 2 . . . . . . . . . Core 3 | . . . . . . 1 . . . . 1 . 1 . . . . . . . Reactor 4 | . . . . . . . . . . . . . 2 . 1 . . . 1 . Propulsion 27 | 2 . . . . 2 4 . 3 . . 4 . 3 1 . . . . 6 2 Treads 4 | 2 . . . . 2 . . . . . . . . . . . . . . . Leg 9 | . . . . . . 4 . 3 . . 2 . . . . . . . . . Wheel 3 | . . . . . . . . . . . 2 . . . . . . . . 1 Hover 4 | . . . . . . . . . . . . . 3 1 . . . . . . Flight 7 | . . . . . . . . . . . . . . . . . . . 6 1 Utility 47 | 2 5 1 . . 1 . . 1 . 1 13 1 11 2 . . . . 5 4 Device 26 | 2 2 . . . . . . 1 . 1 5 1 7 2 . . . . 3 2 Storage 3 | . 3 . . . . . . . . . . . . . . . . . . . Processor 15 | . . 1 . . 1 . . . . . 7 . 2 . . . . . 2 2 Hackware . | . . . . . . . . . . . . . . . . . . . . . Protection 3 | . . . . . . . . . . . 1 . 2 . . . . . . . Artifact . | . . . . . . . . . . . . . . . . . . . . . Weapon 44 | 1 3 1 . 4 1 2 3 3 . 1 4 . 10 2 . 1 1 . 6 1 Energy Gun 7 | 1 1 . . 2 . . . . . . . . 3 . . . . . . . Energy Cannon . | . . . . . . . . . . . . . . . . . . . . . Ballistic Gun 16 | . 2 . . . 1 2 3 1 . . 1 . 5 . . . . . 1 . Ballistic Cannon 8 | . . . . 1 . . . 2 . . 1 . . 1 . 1 . . 2 . Launcher 3 | . . 1 . 1 . . . . . . . . . . . . . . 1 . Special Weapon . | . . . . . . . . . . . . . . . . . . . . . Impact Weapon 5 | . . . . . . . . . . 1 2 . 2 . . . . . . . Slashing Weapon 4 | . . . . . . . . . . . . . . 1 . . 1 . 2 . Piercing Weapon 1 | . . . . . . . . . . . . . . . . . . . . 1 Special Melee Weapon . | . . . . . . . . . . . . . . . . . . . . . Unidentified Prototypes 13 | . 1 . . . . . . 1 . . 1 . 6 . . . . . 4 . Parts Lost 58 | . . . . 1 . 6 . 4 . . 21 3 . 3 . . . . 2 18 Power 5 | . . . . . . 1 . . . . 2 . . 1 . . . . . 1 Propulsion 19 | . . . . . . 2 . 3 . . 6 . . . . . . . . 8 Utility 21 | . . . . . . . . 1 . . 9 2 . 1 . . . . 1 7 Weapon 13 | . . . . 1 . 3 . . . . 4 1 . 1 . . . . 1 2 Highest Loss Streak 17 | . . . . 1 . 3 . 3 . . 17 3 . 3 . . . . 2 14 To Critical Strikes 1 | . . . . . . . . . . . 1 . . . . . . . . . Average Backups 11 | 2 7 12 12 14 11 15 18 18 18 19 16 8 3 4 4 5 4 5 4 3 Power . | . . 1 1 1 1 1 1 1 1 1 1 . . . 1 . . . . . Propulsion 1 | . . . . 1 . 2 2 1 1 1 1 . . . . . . . . . Utility 5 | . 3 5 5 6 5 7 10 12 12 12 7 5 1 1 1 2 1 2 . 1 Weapon 4 | . 2 6 6 5 5 4 4 4 4 5 6 3 1 2 2 2 3 3 3 2 Tool/Special . | . . . . . . . . . . . . . . . . . . . . . Unused Backups 26 | . 5 . . . . . 1 1 . . 3 8 3 . . 1 . . 1 3 Power 2 | . . . . . . . 1 . . . . . . . . 1 . . . . Propulsion 2 | . 1 . . . . . . . . . . . 1 . . . . . . . Utility 11 | . 1 . . . . . . 1 . . 1 4 2 . . . . . . 2 Weapon 11 | . 3 . . . . . . . . . 2 4 . . . . . . 1 1 Tool/Special . | . . . . . . . . . . . . . . . . . . . . . Average Slot Usage (%) 88 | . 93 100 100 99 97 97 100 90 86 89 82 44 82 82 87 88 87 83 83 69 Engine 5 | . 11 13 12 12 8 5 2 7 6 7 5 2 . . . . . . . . Reactor 2 | . . . . . . . . . . . . . 5 6 9 11 11 11 9 3 Treads 7 | . 28 27 25 25 32 3 . . . . . . . . . . . . . . Leg 9 | . . . . . . 27 33 27 26 31 12 . . . . . . . . . Hover 3 | . . . . . . . . . . . . . 10 16 16 16 16 16 12 . Flight 1 | . . . . . . . . . . . . . . . . . . . 4 23 Device 17 | . 14 13 12 12 15 16 16 13 13 15 14 5 27 21 22 22 22 22 25 26 Storage 6 | . 11 13 12 12 8 8 8 7 6 7 6 2 . . . . . . . . Processor 8 | . . 3 12 12 8 8 8 7 6 7 19 15 5 5 5 5 5 5 5 5 Protection 2 | . . . . . . . . . . . . 6 7 11 11 11 10 5 8 . Energy Gun 3 | . 13 . . 5 7 6 5 . . . . . 5 5 5 5 5 5 . . Ballistic Gun 10 | . 12 27 25 14 7 14 18 17 13 2 3 . 13 11 11 5 5 5 2 . Ballistic Cannon 2 | . . . . 4 8 2 . 4 6 7 3 . . . . 4 5 5 5 . Impact Weapon 2 | . . . . . . . . 2 6 7 10 7 2 3 5 5 1 . . . Slashing Weapon 1 | . . . . . . . . . . . . . . . . . 3 5 9 8 Peak Build Rating 139 | 7 24 26 26 35 40 47 51 58 57 57 68 60 98 104 107 108 111 104 139 131 Average Rating 58 | 4 12 24 26 30 38 44 47 51 57 53 60 32 78 96 105 107 108 104 124 110 On Entrance 58 | . 4 24 26 26 35 40 46 51 57 57 54 60 19 93 100 107 108 104 104 121 Avg Prop Armor Cover (%) 27 | 28 29 . . . . . . . . . 14 . 3 . . . . . . 13 Naked Turns . | . . . . . . . . . . . . . . . . . . . . . Heaviest Build 87 | 8 54 34 34 42 66 66 64 76 76 76 76 49 65 62 69 73 74 66 87 48 Greatest Support 80 | 40 40 40 40 40 80 80 60 63 61 61 61 16 31 53 53 53 53 53 53 56 Greatest Overweight (x) 12 | 2 1 . . 1 . 1 1 2 1 1 3 3 2 1 1 1 1 1 10 12 Average Overweight (x) . | . . . . . . . . 1 1 1 1 . . . . 1 1 1 . . Largest Inventory Capacity 20 | 5 20 15 15 15 20 20 20 20 20 20 20 15 5 5 5 5 5 5 5 5 Average Capacity 13 | 5 9 15 15 15 19 20 20 20 20 20 18 7 5 5 5 5 5 5 5 5 Most Carried 20 | 5 13 13 13 15 14 18 20 20 18 20 20 15 5 5 5 5 5 5 5 5 Average Carried 11 | 2 7 12 12 14 11 16 18 19 18 19 16 7 4 4 4 5 4 5 4 4 Final Capacity 20 | 5 15 15 15 15 20 20 20 20 20 20 15 5 5 5 5 5 5 5 5 5 Final Carried 20 | 5 13 12 13 15 11 18 20 18 18 20 15 5 5 5 5 5 5 5 5 2 Class Distribution -------------------- 33% | Mutant 20% | Scavenger-Skirmisher 15% | Skirmisher 6% | Commander-Gunner 6% | Scout 4% | Commander-Mutant 3% | Scavenger-Gunner 3% | Tank Dominant Class ---------------- Mutant | -10/Materials Mutant | -10/Mines Mutant | -10/Exiles Mutant | -9/Mines Scavenger-Skirmisher | -8/Materials Scavenger-Skirmisher | -8/Garrison Scavenger-Skirmisher | -8/Materials Scavenger-Skirmisher | -8/Storage Commander-Skirmisher | -8/Recycling Commander-Mutant | -8/Scraptown Commander-Gunner | -6/Factory Mutant | -6/Waste Skirmisher | -6/Factory Skirmisher | -5/Factory Skirmisher | -5/Waste Skirmisher | -5/Factory Tank | -5/Upper Caves Tank | -5/Upper Caves Mutant | -4/Factory Scout | -3/Research Resources | -11 -10 -10 -10 -9 -8 -8 -8 -8 -8 -8 -6 -6 -6 -5 -5 -5 -5 -5 -4 -3 ----------- Run | Yrd Mat Min Exi Min Mat Gar Mat Sto Rec Scr Fac Was Fac Fac Was Fac Upp Upp Fac Res Matter Collected 4769 | 270 104 96 . 397 . 577 372 296 . 115 421 . 491 170 575 . . . 372 513 Remotely . | . . . . . . . . . . . . . . . . . . . . . Salvage Created 6043 | 151 265 138 . 465 95 656 162 236 . . 1118 225 760 176 . . . . 231 1365 Parts 290 | 10 25 10 . 33 11 45 5 18 . . 32 3 40 3 . . . . 9 46 Haulers Intercepted 1 | . . . . . . . . . . . . . . . . . . . . 1 Recyclers Shooed 1 | . . . . . . . . . . . 1 . . . . . . . . . Parts Field Recycled . | . . . . . . . . . . . . . . . . . . . . . Retrieved Matter . | . . . . . . . . . . . . . . . . . . . . . Parts Self-Destructed . | . . . . . . . . . . . . . . . . . . . . . Prevented . | . . . . . . . . . . . . . . . . . . . . . Parts Restored . | . . . . . . . . . . . . . . . . . . . . . Kills | -11 -10 -10 -10 -9 -8 -8 -8 -8 -8 -8 -6 -6 -6 -5 -5 -5 -5 -5 -4 -3 ------- Run | Yrd Mat Min Exi Min Mat Gar Mat Sto Rec Scr Fac Was Fac Fac Was Fac Upp Upp Fac Res Combat Hostiles Destroyed 98 | . 9 5 . 16 2 19 2 6 . . 10 1 13 3 . . . . 4 8 Melee 5 | . . . . . . . . . . . 2 . . . . . . . . 3 Guns 58 | . 8 3 . 9 . 15 2 4 . . 1 . 13 3 . . . . . . Cannons 8 | . . . . 2 . 4 . 1 . . 1 . . . . . . . . . AOE 24 | . 1 2 . 5 2 . . 1 . . 3 1 . . . . . . 4 5 Classes Destroyed 19 | 2 3 1 . 1 1 2 1 1 . . 2 1 1 . . . . . . 3 Worker 13 | . . 1 . 1 . . . . . . 9 . . . . . . . . 2 Builder 8 | . . . . . 1 . . . . . 2 . 2 . . . . . 1 2 Tunneler 6 | 3 . 1 . 1 . . . . . . . . 1 . . . . . . . Hauler 1 | . . . . . . . . . . . . . . . . . . . . 1 Recycler 12 | 1 . . . . . . 1 . . . 4 . . . . . . . . 6 Mechanic 1 | . . . . . . . . . . . 1 . . . . . . . . . Operator 1 | . . . . . . . . . . . . . . . . . . . . 1 Watcher 5 | . 1 . . . . . . . . . 1 . . . . . . . . 3 Swarmer 25 | . 5 3 . 4 . 3 . . . . 2 . 4 . . . . . . 4 Cutter 2 | . . . . . . 2 . . . . . . . . . . . . . . Grunt 46 | . 4 2 . 10 2 11 1 2 . . . . 7 3 . . . . 4 . Brawler 2 | . . . . 2 . . . . . . . . . . . . . . . . Duelist 1 | . . . . . . . . . . . . . 1 . . . . . . . Protector 1 | . . . . . . . . 1 . . . . . . . . . . . . Sentry 8 | . . . . . . . 1 3 . . 3 . . . . . . . . 1 Hunter 6 | . . . . . . 3 . . . . 3 . . . . . . . . . Programmer 4 | . . . . . . . . . . . 2 . 1 . . . . . . 1 Behemoth 1 | . . . . . . . . . . . . . . . . . . . . 1 Compactor 1 | . . . . . . . . . . . . 1 . . . . . . . . Surgeon 2 | . . . . . . . . . . . . . . . . . . . 2 . Savage 1 | . . . . . . . . . . . . . . . . . . . . 1 Best Kill Streak 9 | 3 3 5 . 6 3 3 1 4 . . 9 1 5 3 . . . . 4 9 Combat Bots Only 6 | . 3 3 . 6 2 3 1 4 . . 3 1 4 3 . . . . 4 4 Max Kills in Single Turn 7 | 1 1 3 . 2 1 1 1 1 . . 4 1 2 1 . . . . 2 7 Gunslinging . | . . . . . . . . . . . . . . . . . . . . . Exploded 4 | . 1 2 . 2 1 . . 1 . . 1 1 . . . . . . 2 4 Melee 1 | . . . . . . . . . . . 1 . . . . . . . . 1 Uniques/NPCs Destroyed . | . . . . . . . . . . . . . . . . . . . . . Combat | -11 -10 -10 -10 -9 -8 -8 -8 -8 -8 -8 -6 -6 -6 -5 -5 -5 -5 -5 -4 -3 -------- Run | Yrd Mat Min Exi Min Mat Gar Mat Sto Rec Scr Fac Was Fac Fac Was Fac Upp Upp Fac Res Hostile Shots Fired 700 | . 15 25 . 48 5 103 4 29 . . 190 5 59 17 . 1 . . 48 151 Missed 184 | . 5 5 . 17 1 20 1 9 . . 52 1 15 3 . 1 . . 13 41 Hits 516 | . 10 20 . 31 4 83 3 20 . . 138 4 44 14 . . . . 35 110 Melee 9 | . . . . . . 4 . . . . . 4 1 . . . . . . . Projectile 507 | . 10 20 . 31 4 79 3 20 . . 138 . 43 14 . . . . 35 110 AOE 3 | . . . . . . 2 . . . . . . . . . . . . . 1 Critical Strikes 31 | . . . . . . 5 . 1 . . 6 3 4 1 . . . . 4 7 Actively Blocked 13 | . . . . . . . . . . . . 2 . . . . . . 4 7 Damage Taken 9187 | . 91 228 . 363 63 1188 49 308 . . 2005 164 773 267 . . . . 1069 2619 Core 2183 | . 11 37 . 46 . 161 . 10 . . 245 95 165 13 . . . . 39 1361 Absorbed by Shields 124 | . . . . . . . . . . . 124 . . . . . . . . . Redirected to Shielding 106 | . . . . . . . . . . . . 38 48 5 . . . . 15 . Regen/Repaired (Parts) 484 | . . . . . . . . . . . . . 73 34 95 . . . 282 . Core Remaining (%) 85 | 100 . . . 79 . . . . . 96 . . 43 . . . . 98 96 . Volleys Fired 217 | 17 18 12 . 27 5 57 5 9 . . 18 . 29 9 . . . . 6 5 Largest 4 | 1 2 2 . 2 2 3 3 3 . . 3 . 4 4 . . . . 4 1 Hottest 178 | 40 80 46 . 115 115 138 116 106 . . 122 . 178 173 . . . . 171 70 Shots Fired 501 | 17 35 22 . 52 6 139 15 27 1 . 36 . 100 30 1 . . . 15 5 Gun 415 | 17 35 20 . 39 1 117 15 18 . . 16 . 100 30 1 . . . 6 . Cannon 61 | . . . . 7 1 22 . 7 1 . 17 . . . . . . . 6 . Launcher 25 | . . 2 . 6 4 . . 2 . . 3 . . . . . . . 3 5 Special . | . . . . . . . . . . . . . . . . . . . . . Kinetic 345 | . 4 20 . 38 1 107 12 25 1 . 33 . 70 21 1 . . . 12 . Thermal 83 | . . . . 8 1 32 3 . . . . . 30 9 . . . . . . Explosive 25 | . . 2 . 6 4 . . 2 . . 3 . . . . . . . 3 5 Electromagnetic 48 | 17 31 . . . . . . . . . . . . . . . . . . . Robot Hit Streak 20 | 9 11 4 . 7 1 12 5 5 6 . 10 . 20 5 . . . . 5 6 Robot Miss Streak 11 | 1 3 6 . 2 1 11 3 3 . . 3 . 4 3 1 . . . 1 . Penetration Max 2 | . . . . . . . . 1 . . 1 . 2 . . . . . . . Secondary Targets 8 | . 1 . . 4 . 1 . . . . . . . 2 . . . . . . Max Gunslinging Chain 1 | . 1 . . 1 . 1 . . . . . . . 1 . . . . . . Shots Hit Robots 344 | 14 21 12 . 35 1 78 9 8 1 . 44 . 57 17 . . . . 12 35 Core Hits 230 | 5 13 11 . 31 6 41 6 12 . . 20 2 41 7 . . . . 11 24 Critical Kills 4 | . . . . . . . . . . . . . 3 1 . . . . . . Critical Parts Destroyed 14 | . . . . 1 . . . . . . 5 . 4 4 . . . . . . Critical Strikes 25 | . . . . 1 . 4 . . . . 6 . 8 6 . . . . . . Burn 6 | . . . . . . 4 . . . . . . 1 1 . . . . . . Destroy 13 | . . . . 1 . . . . . . . . 7 5 . . . . . . Blast 1 | . . . . . . . . . . . 1 . . . . . . . . . Smash 5 | . . . . . . . . . . . 5 . . . . . . . . . Melee Attacks 110 | . . . . . . . . . . . 32 . 4 . . . 1 . 5 68 Impact 36 | . . . . . . . . . . . 32 . 4 . . . . . . . Slashing 71 | . . . . . . . . . . . . . . . . . 1 . 5 65 Piercing 3 | . . . . . . . . . . . . . . . . . . . . 3 Sneak Attacks 15 | . . . . . . . . . . . 10 . . . . . . . 1 4 Combat Hostiles 1 | . . . . . . . . . . . 1 . . . . . . . . . Follow-up Attacks 8 | . . . . . . . . . . . 5 . . . . . . . . 3 Damage Inflicted 14966 | 178 367 428 . 1138 405 1325 173 496 . . 3321 214 1310 362 . . . . 1307 3942 Guns 4599 | 178 327 170 . 535 20 1043 173 222 . . 157 . 1310 362 . . . . 102 . Cannons 1124 | . . . . 121 25 282 . 20 . . 480 . . . . . . . 196 . Explosions 5576 | . 40 258 . 482 360 . . 254 . . 1200 194 . . . . . . 856 1932 Melee 3647 | . . . . . . . . . . . 1484 . . . . . . . 153 2010 Ramming . | . . . . . . . . . . . . . . . . . . . . . Kinetic 4220 | . 19 170 . 560 25 1052 126 242 . . 637 . 862 229 . . . . 298 . Thermal 1190 | . 40 . . 146 20 273 47 . . . . . 448 133 . . . . 83 . Explosive 5302 | . . 258 . 432 259 . . 254 . . 1200 194 . . . . . . 773 1932 Electromagnetic 587 | 178 308 . . . 101 . . . . . . . . . . . . . . . Impact 1484 | . . . . . . . . . . . 1484 . . . . . . . . . Slashing 2119 | . . . . . . . . . . . . 20 . . . . . . 153 1946 Piercing 64 | . . . . . . . . . . . . . . . . . . . . 64 Highest Corruption 18 | . . . . 4 . 8 8 16 . . 2 14 1 . . . . . . 18 Average Corruption 5 | . . . . 3 . 8 8 11 . . 1 10 1 . . . . . . 9 Corruption Purged . | . . . . . . . . . . . . . . . . . . . . . Corruption Blocked . | . . . . . . . . . . . . . . . . . . . . . Effects 48 | . . . . 5 . 11 13 1 . . 4 3 5 . . . . . . 6 Message Errors 10 | . . . . 1 . 2 5 . . . . 1 1 . . . . . . . Matter Fused 18 | . . . . 4 . 4 4 1 . . . . 1 . . . . . . 4 Heat Flow Errors 4 | . . . . . . 1 . . . . 3 . . . . . . . . . Energy Discharges 6 | . . . . . . 2 1 . . . . 1 2 . . . . . . . Parts Rejected 1 | . . . . . . . . . . . . . . . . . . . . 1 Data Loss (minor) 4 | . . . . . . 1 2 . . . 1 . . . . . . . . . Data Loss (major) 2 | . . . . . . . . . . . . . 1 . . . . . . 1 Misfires 1 | . . . . . . 1 . . . . . . . . . . . . . . Alerts 1 | . . . . . . . 1 . . . . . . . . . . . . . Misdirections 1 | . . . . . . . . . . . . 1 . . . . . . . . Overload Shots . | . . . . . . . . . . . . . . . . . . . . . Overflow Damage 1482 | . . 15 . 40 2 . . 11 . . 872 . . . . . . . 109 433 Projectiles . | . . . . . . . . . . . . . . . . . . . . . Explosions 394 | . . 15 . 40 2 . . 11 . . 107 . . . . . . . 50 169 Melee 1088 | . . . . . . . . . . . 765 . . . . . . . 59 264 Knockbacks 9 | . . . . 1 . . . . . . 8 . . . . . . . . . Impact 7 | . . . . . . . . . . . 7 . . . . . . . . . Kinetic 2 | . . . . 1 . . . . . . 1 . . . . . . . . . Secondary . | . . . . . . . . . . . . . . . . . . . . . Self-Inflicted Damage 486 | . . . . . . . . 30 . . 29 . . . . . . . 253 174 Shots 9 | . . . . . . . . 1 . . 2 . . . . . . . 3 3 Rammed . | . . . . . . . . . . . . . . . . . . . . . Targets Rammed . | . . . . . . . . . . . . . . . . . . . . . Kicked . | . . . . . . . . . . . . . . . . . . . . . Crushed . | . . . . . . . . . . . . . . . . . . . . . Highest Temperature 306 | . 84 29 . 258 42 306 . 201 . . 274 . 299 12 . . . . 48 . Average Temperature 56 | . 32 14 . 61 13 79 . 113 . . 114 . 45 6 . . . . 23 . Received Heat Transfer 1450 | . 18 90 . 192 27 294 27 150 . . 40 . 279 144 . . . . 108 81 Effects 3 | . . . . . . 2 . . . . 1 . . . . . . . . . Energy Bleed 1 | . . . . . . . . . . . 1 . . . . . . . . . Interference 2 | . . . . . . 2 . . . . . . . . . . . . . . Siege Activations . | . . . . . . . . . . . . . . . . . . . . . Martial Activations . | . . . . . . . . . . . . . . . . . . . . . Shielding Activations . | . . . . . . . . . . . . . . . . . . . . . Robots Disrupted . | . . . . . . . . . . . . . . . . . . . . . Combat Hostiles . | . . . . . . . . . . . . . . . . . . . . . Robots Corrupted 8 | . . . . . . . . . . . 8 . . . . . . . . . Combat Hostiles 3 | . . . . . . . . . . . 3 . . . . . . . . . Parts Fried 10 | 1 . . . . . . . . . . 9 . . . . . . . . . Impact Corruptions 30 | . . . . . . . . . . . 30 . . . . . . . . . Robots Melted . | . . . . . . . . . . . . . . . . . . . . . Combat Hostiles . | . . . . . . . . . . . . . . . . . . . . . Parts Melted 2 | . . . . . . . . . . . . . 2 . . . . . . . Heat Transferred 2897 | . 100 . . 285 37 814 111 . . . . . 1100 400 . . . . 50 . Parts Sabotaged . | . . . . . . . . . . . . . . . . . . . . . Parts Stolen . | . . . . . . . . . . . . . . . . . . . . . Parts Stripped 13 | . . . . . . . . . . . . . . . . . . . . 13 Power Chain Reactions 1 | . 1 . . . . . . . . . . . . . . . . . . . Alert | -11 -10 -10 -10 -9 -8 -8 -8 -8 -8 -8 -6 -6 -6 -5 -5 -5 -5 -5 -4 -3 ------- Run | Yrd Mat Min Exi Min Mat Gar Mat Sto Rec Scr Fac Was Fac Fac Was Fac Upp Upp Fac Res Maximum Alert Level 2 | . . . . 1 . 2 1 1 . . . . 1 . . 2 . . 2 2 Low Security (%) 70 | 100 100 100 . 86 100 18 . 95 100 . 100 100 67 100 100 24 . . 39 36 Level 1 20 | . . . . 13 . 28 100 4 . . . . 32 . . 23 . . 53 56 Level 2 8 | . . . . . . 53 . . . . . . . . . 51 . . 7 6 Level 3 . | . . . . . . . . . . . . . . . . . . . . . Level 4 . | . . . . . . . . . . . . . . . . . . . . . Level 5 . | . . . . . . . . . . . . . . . . . . . . . High Security . | . . . . . . . . . . . . . . . . . . . . . Max Security . | . . . . . . . . . . . . . . . . . . . . . Peak Influence 664 | 15 70 103 . 243 158 584 333 202 84 . 146 28 297 165 47 664 . . 418 542 Initial 284 | . . 16 . . 68 89 284 127 63 . . 28 . 123 47 . . . 147 205 Average 138 | 2 15 37 . 101 109 374 270 132 21 . 42 9 104 137 10 317 . . 232 243 Influence Increases 5773 | 20 258 153 . 463 110 555 249 245 23 . 771 5 513 102 . 784 . 60 631 831 Destroy 0b10 Robot/C 2704 | . 180 100 . 320 40 380 140 160 20 . 344 . 260 60 . 240 . 20 200 240 Destroy 0b10 Robot/NC 266 | 20 5 10 . 10 5 . 10 10 . . 76 . 15 . . 5 . . 25 75 Destroy Leader 464 | . 22 20 . 50 10 20 40 30 . . 84 . 30 10 . 40 . 10 40 58 Allied During Kill 490 | . . . . . . . 19 21 1 . 74 . . . . 285 . 30 39 21 Successful Hack 180 | . 15 . . . . . 25 . . . 64 . 26 . . . . . 12 38 Disable Machine 387 | . . . . 15 15 . . . . . 87 . 60 30 . 60 . . 90 30 Anti-Garrison Action 50 | . . . . . . 50 . . . . . . . . . . . . . . Destroy Structure 637 | . 6 23 . 38 25 45 . 24 2 . 42 5 17 2 . 22 . . 210 176 Partial Spotted 60 | . 15 . . . 15 . . . . . . . . . . . . . 15 15 Lose Combat Pursuer 225 | . 15 . . 30 . 60 15 . . . . . 105 . . . . . . . Miscellaneous 310 | . . . . . . . . . . . . . . . . 132 . . . 178 Influence Decreases 5259 | 20 215 113 83 287 148 109 530 386 185 . 689 87 261 219 135 130 363 117 473 709 Entered New Map 1687 | . . 27 83 . 108 49 300 176 99 . . 54 . 129 88 . 243 57 87 187 Time Decay 2521 | 20 215 86 . 277 40 . 190 130 86 . 353 18 261 60 47 90 120 20 206 302 Lost Part 536 | . . . . 10 . 60 . 40 . . 186 10 . 30 . . . . 20 180 Lost Ally 515 | . . . . . . . 40 40 . . 150 5 . . . 40 . 40 160 40 Squads Dispatched 32 | . 2 . . . 3 . 2 2 . . 6 . 4 1 . . . . 4 8 Investigation 6 | . . . . . . . 1 . . . 1 . . . . . . . 3 1 Extermination 11 | . . . . . . . . . . . 3 . 2 . . . . . 1 5 Reinforcement 11 | . 2 . . . 2 . 1 . . . 2 . 1 1 . . . . . 2 Assault 3 | . . . . . . . . 2 . . . . 1 . . . . . . . Garrison 1 | . . . . . 1 . . . . . . . . . . . . . . . Intercept . | . . . . . . . . . . . . . . . . . . . . . Searches Triggered . | . . . . . . . . . . . . . . . . . . . . . Construction Impeded 2 | . . . . . . . . . . . 1 . . . . . . . . 1 Haulers Reinforced . | . . . . . . . . . . . . . . . . . . . . . Active Scanning Responses . | . . . . . . . . . . . . . . . . . . . . . Cargo Convoy Interrupts . | . . . . . . . . . . . . . . . . . . . . . Stealth | -11 -10 -10 -10 -9 -8 -8 -8 -8 -8 -8 -6 -6 -6 -5 -5 -5 -5 -5 -4 -3 --------- Run | Yrd Mat Min Exi Min Mat Gar Mat Sto Rec Scr Fac Was Fac Fac Was Fac Upp Upp Fac Res Distress Signals 10 | . 1 . . . . 1 1 . . . 3 . 2 . . . . . . 2 Communications Jammed . | . . . . . . . . . . . . . . . . . . . . . Distress Signals . | . . . . . . . . . . . . . . . . . . . . . Times Spotted 191 | . 14 5 . 18 4 25 4 13 . . 24 11 32 4 . 5 . . 9 23 Peak Tracking Total 8 | . 3 3 . 7 3 5 3 8 . . 4 6 8 3 . 4 . . 6 8 Tactical Retreats 9 | . 1 . . 2 . 1 1 . . . . . 4 . . . . . . . Traps | -11 -10 -10 -10 -9 -8 -8 -8 -8 -8 -8 -6 -6 -6 -5 -5 -5 -5 -5 -4 -3 ------- Run | Yrd Mat Min Exi Min Mat Gar Mat Sto Rec Scr Fac Was Fac Fac Was Fac Upp Upp Fac Res Traps Triggered 7 | . . . . . . 3 1 . . . 2 . . 1 . . . . . . Indirectly . | . . . . . . . . . . . . . . . . . . . . . Trap Hack Attempts . | . . . . . . . . . . . . . . . . . . . . . Triggered . | . . . . . . . . . . . . . . . . . . . . . Disarmed . | . . . . . . . . . . . . . . . . . . . . . Reprogrammed . | . . . . . . . . . . . . . . . . . . . . . Reused . | . . . . . . . . . . . . . . . . . . . . . Traps Extracted . | . . . . . . . . . . . . . . . . . . . . . Installed 2 | . . . . . . . . . . . . . 2 . . . . . . . Triggered . | . . . . . . . . . . . . . . . . . . . . . Most Traps Carried 1 | . . . . . . . . . . . . . 1 . . . . . . . Machines | -11 -10 -10 -10 -9 -8 -8 -8 -8 -8 -8 -6 -6 -6 -5 -5 -5 -5 -5 -4 -3 ---------- Run | Yrd Mat Min Exi Min Mat Gar Mat Sto Rec Scr Fac Was Fac Fac Was Fac Upp Upp Fac Res Machines Disabled 28 | . . . . 1 1 1 . . . . 7 . 4 2 . 4 . . 6 2 Max in Single Turn 4 | . . . . 1 1 1 . . . . 2 . 1 1 . . . . 4 1 Garrison Relay 1 | . . . . . . 1 . . . . . . . . . . . . . . Machines Repaired . | . . . . . . . . . . . . . . . . . . . . . Machines Dismantled . | . . . . . . . . . . . . . . . . . . . . . Machines Sabotaged . | . . . . . . . . . . . . . . . . . . . . . Overloaded Fab Kills . | . . . . . . . . . . . . . . . . . . . . . Hacking | -11 -10 -10 -10 -9 -8 -8 -8 -8 -8 -8 -6 -6 -6 -5 -5 -5 -5 -5 -4 -3 --------- Run | Yrd Mat Min Exi Min Mat Gar Mat Sto Rec Scr Fac Was Fac Fac Was Fac Upp Upp Fac Res Machines Accessed 30 | . 4 . 1 1 2 1 3 . . . 5 . 5 . . . . . 3 5 Terminals 15 | . 4 . . . 1 1 3 . . . 1 . 2 . . . . . . 3 Fabricators 9 | . . . . . . . . . . . 3 . 2 . . . . . 3 1 Repair Stations . | . . . . . . . . . . . . . . . . . . . . . Recycling Units . | . . . . . . . . . . . . . . . . . . . . . Scanalyzers 3 | . . . . . . . . . . . 1 . 1 . . . . . . 1 Garrison Access 1 | . . . . . 1 . . . . . . . . . . . . . . . Total Hacks 84 | . 13 . 1 1 4 1 9 . . . 22 . 12 . . . . . 8 13 Successful 39 | . 4 . 1 1 3 1 5 . . . 13 . 4 . . . . . 3 4 Failed 45 | . 9 . . . 1 . 4 . . . 9 . 8 . . . . . 5 9 Catastrophic 12 | . . . . . . . 1 . . . 2 . 4 . . . . . 2 3 Database Lockouts . | . . . . . . . . . . . . . . . . . . . . . Manual 71 | . 14 . 1 . 3 . 9 2 . . 15 . 10 . . . . . 7 10 Terminals 42 | . 13 . . . 3 1 9 . . . 3 . 4 . . . . . . 9 Fabricators 31 | . . . . . . . . . . . 15 . 6 . . . . . 8 2 Repair Stations . | . . . . . . . . . . . . . . . . . . . . . Recycling Units . | . . . . . . . . . . . . . . . . . . . . . Scanalyzers 8 | . . . . . . . . . . . 4 . 2 . . . . . . 2 Garrison Access 1 | . . . . . 1 . . . . . . . . . . . . . . . Terminal Hacks 6 | . 1 . 1 1 . 1 2 . . . . . . . . . . . . . Open Door 1 | . . . . 1 . . . . . . . . . . . . . . . . Branch Access Points 1 | . . . . . . . 1 . . . . . . . . . . . . . Emergency Access Points 1 | . . . . . . 1 . . . . . . . . . . . . . . Terminal Index 1 | . 1 . . . . . . . . . . . . . . . . . . . Zone Layout 1 | . . . . . . . 1 . . . . . . . . . . . . . Proto ID Catalog 1 | . . . 1 . . . . . . . . . . . . . . . . . Fabricator Hacks 3 | . . . . . . . . . . . 2 . . . . . . . 1 . Network Status 3 | . . . . . . . . . . . 2 . . . . . . . 1 . Repair Station Hacks . | . . . . . . . . . . . . . . . . . . . . . Recycling Unit Hacks . | . . . . . . . . . . . . . . . . . . . . . Scanalyzer 5 | . . . . . . . . . . . 3 . 1 . . . . . . 1 Retrieve Study 5 | . . . . . . . . . . . 3 . 1 . . . . . . 1 Garrison Access Hacks 1 | . . . . . 1 . . . . . . . . . . . . . . . Unlock Access 1 | . . . . . 1 . . . . . . . . . . . . . . . Unauthorized Hacks 24 | . 3 . . . 2 . 3 . . . 8 . 3 . . . . . 2 3 Terminals 12 | . 3 . . . 2 . 3 . . . . . 1 . . . . . . 3 Track 3 | . 1 . . . 1 . . . . . . . . . . . . . . 1 Assimilate 1 | . 1 . . . . . . . . . . . . . . . . . . . Botnet 6 | . . . . . 1 . 3 . . . . . 1 . . . . . . 1 Operators 2 | . 1 . . . . . . . . . . . . . . . . . . 1 Fabricators 12 | . . . . . . . . . . . 8 . 2 . . . . . 2 . Report 1 | . . . . . . . . . . . 1 . . . . . . . . . Liberate 7 | . . . . . . . . . . . 3 . 2 . . . . . 2 . Fabnet 2 | . . . . . . . . . . . 2 . . . . . . . . . Haulers 2 | . . . . . . . . . . . 2 . . . . . . . . . Repair Stations . | . . . . . . . . . . . . . . . . . . . . . Recycling Units . | . . . . . . . . . . . . . . . . . . . . . Scanalyzers . | . . . . . . . . . . . . . . . . . . . . . Garrison Access . | . . . . . . . . . . . . . . . . . . . . . Data Cores Recovered 2 | . . . . . . . . 1 . . . . . . . . . . . 1 Used . | . . . . . . . . . . . . . . . . . . . . . Hacking Detections 27 | . 4 . . . 1 1 3 . . . 5 . 5 . . . . . 3 5 Full Trace Events 6 | . . . . . . . 1 . . . 1 . . . . . . . 3 1 Feedback Events . | . . . . . . . . . . . . . . . . . . . . . Feedback Blocked . | . . . . . . . . . . . . . . . . . . . . . Robot Schematics Acquired . | . . . . . . . . . . . . . . . . . . . . . Robots Built . | . . . . . . . . . . . . . . . . . . . . . Authchips . | . . . . . . . . . . . . . . . . . . . . . Time . | . . . . . . . . . . . . . . . . . . . . . Total Robot Build Rating . | . . . . . . . . . . . . . . . . . . . . . Part Schematics Acquired . | . . . . . . . . . . . . . . . . . . . . . Parts Built . | . . . . . . . . . . . . . . . . . . . . . Authchips . | . . . . . . . . . . . . . . . . . . . . . Time . | . . . . . . . . . . . . . . . . . . . . . Total Part Build Rating . | . . . . . . . . . . . . . . . . . . . . . Part Studies Acquired 5 | . . . . . . . . . . . 3 . 1 . . . . . . 1 Parts Repaired . | . . . . . . . . . . . . . . . . . . . . . Time . | . . . . . . . . . . . . . . . . . . . . . Parts Recycled . | . . . . . . . . . . . . . . . . . . . . . Recycled Matter . | . . . . . . . . . . . . . . . . . . . . . Retrieved Matter . | . . . . . . . . . . . . . . . . . . . . . Retrieved Components . | . . . . . . . . . . . . . . . . . . . . . Parts Scanalyzed . | . . . . . . . . . . . . . . . . . . . . . Part Schematics Acquired . | . . . . . . . . . . . . . . . . . . . . . Parts Damaged . | . . . . . . . . . . . . . . . . . . . . . Bothacking | -11 -10 -10 -10 -9 -8 -8 -8 -8 -8 -8 -6 -6 -6 -5 -5 -5 -5 -5 -4 -3 ------------ Run | Yrd Mat Min Exi Min Mat Gar Mat Sto Rec Scr Fac Was Fac Fac Was Fac Upp Upp Fac Res Used RIF Installer 1 | . . . . . . 1 . . . . . . . . . . . . . . Command Fork 1 | . . . . . . . 1 . . . . . . . . . . . . . Robots Hacked 1 | . . . . . . . . . . . . . . . . 1 . . . . Non-combat . | . . . . . . . . . . . . . . . . . . . . . Combat 1 | . . . . . . . . . . . . . . . . 1 . . . . Robot Hacks Applied . | . . . . . . . . . . . . . . . . . . . . . Relay Couplers Released 5 | . . . . . . 5 . . . . . . . . . . . . . . Machine Destruction 5 | . . . . . . 5 . . . . . . . . . . . . . . Fabnet Peak Effective % 3 | . . . . . . . . . . . . . . 3 3 3 3 3 1 . Autooverrided 1 | . . . . . . . . . . . . . . . . 1 . . . . Robots Rewired 11 | . . . . . . 3 . . 8 . . . . . . . . . . . Allies Hacked . | . . . . . . . . . . . . . . . . . . . . . Hacks Repelled . | . . . . . . . . . . . . . . . . . . . . . Allies | -11 -10 -10 -10 -9 -8 -8 -8 -8 -8 -8 -6 -6 -6 -5 -5 -5 -5 -5 -4 -3 -------- Run | Yrd Mat Min Exi Min Mat Gar Mat Sto Rec Scr Fac Was Fac Fac Was Fac Upp Upp Fac Res Total Allies 48 | . . . . 2 . 3 . 3 8 . 8 . . . 20 1 . . . 3 Largest Group 20 | . . . . 1 . 3 3 3 9 9 9 4 . . 20 19 17 17 13 3 Highest-Rated Group 689 | . . . . 5 . 120 120 102 124 124 243 164 . . 689 660 610 610 434 117 Highest-Rated Ally 79 | . . . . 5 . 40 40 40 27 27 79 41 . . 50 50 50 50 50 39 Total Orders . | . . . . . . . . . . . . . . . . . . . . . Ally Attacks 252 | . . . . 4 . . 22 28 1 . 48 8 . . . 64 . 5 57 15 Total Damage 7137 | . . . . 22 . . 606 382 20 . 1078 338 . . . 1118 . 146 3237 190 Kills 55 | . . . . . . . 6 4 1 . 12 . . . . 14 . 1 13 4 Allies Corrupted 2 | . . . . . . . . . . . 1 . . . . . . 1 . . Allies Melted . | . . . . . . . . . . . . . . . . . . . . . X0-1V1 Amusement Gains 248 | . 22 . . . 5 . . 10 . . 103 . . 10 . . . . 12 86 Good Acts 70 | . 1 2 . 4 . 4 2 16 1 . 4 4 11 . . 3 1 . 5 12 Bad Acts 55 | . 1 . . 6 . 4 . 8 1 . 7 4 6 . 3 2 3 . 1 9 Intel | -11 -10 -10 -10 -9 -8 -8 -8 -8 -8 -8 -6 -6 -6 -5 -5 -5 -5 -5 -4 -3 ------- Run | Yrd Mat Min Exi Min Mat Gar Mat Sto Rec Scr Fac Was Fac Fac Was Fac Upp Upp Fac Res Active Infowar (turns) 4496 | 79 684 . . . 88 48 . . . . 1308 53 420 22 263 229 254 51 439 558 Terrain 289 | 77 212 . . . . . . . . . . . . . . . . . . . Structural 544 | . . . . . . . . . . . . . . . . . . . . 544 Traps 2098 | . . . . . . . . . . . . . 282 22 263 229 254 51 439 558 Seismic 1794 | 2 472 . . . 88 48 . . . . 910 . 274 . . . . . . . Machine Analysis 482 | . . . . . . . . . . . 429 53 . . . . . . . . Robot Analysis Total . | . . . . . . . . . . . . . . . . . . . . . Derelict Logs Recovered 4 | . . . . 2 . . . . . . . . . . . . 1 1 . . Drone Launches . | . . . . . . . . . . . . . . . . . . . . . Drone Recoveries . | . . . . . . . . . . . . . . . . . . . . . Exploration | -11 -10 -10 -10 -9 -8 -8 -8 -8 -8 -8 -6 -6 -6 -5 -5 -5 -5 -5 -4 -3 ------------- Run | Yrd Mat Min Exi Min Mat Gar Mat Sto Rec Scr Fac Was Fac Fac Was Fac Upp Upp Fac Res Turns Passed 9694 | 135 951 233 347 932 92 1078 395 271 362 419 1561 85 808 123 263 229 254 51 439 666 Spaces Moved 6949 | 74 555 121 217 451 45 591 264 115 146 214 787 119 703 86 266 210 226 41 449 1269 Core 414 | 62 179 . . . . . . . . . . 102 31 . . . . . . 40 Treads 1265 | 12 376 121 217 451 45 43 . . . . . . . . . . . . . . Legs 1723 | . . . . . . 548 264 115 146 214 436 . . . . . . . . . Wheels 376 | . . . . . . . . . . . 351 17 . . . . . . . 8 Hover 1803 | . . . . . . . . . . . . . 672 86 266 210 226 41 302 . Flight 1368 | . . . . . . . . . . . . . . . . . . . 147 1221 Fastest Speed 22 | 50 50 160 160 160 160 120 120 190 190 190 100 50 50 48 48 98 98 98 25 22 Average Speed 112 | 101 125 160 160 183 160 142 134 194 190 190 165 62 87 56 90 98 98 98 78 29 Slowest Speed 840 | 160 240 160 160 240 160 240 190 260 190 190 190 135 151 98 98 98 98 98 840 650 Overloaded Moves . | . . . . . . . . . . . . . . . . . . . . . Propulsion Burnouts . | . . . . . . . . . . . . . . . . . . . . . Robots Hopped 7 | . . . . . . . . . . . . . . . . . . . 1 6 Potential Cave-ins . | . . . . . . . . . . . . . . . . . . . . . Cave-ins Triggered . | . . . . . . . . . . . . . . . . . . . . . Exploration Rate (%) 36 | 3 61 33 61 94 10 58 20 26 41 29 23 77 20 3 87 8 43 9 11 40 Regions Visited 20 Branch Regions 8 Pre-discovered Areas . | . . . . . . . . . . . . . . . . . . . . . Known Exits Taken 6 | . . . . 1 1 . 1 1 . . . . 1 . . . . . 1 . Unknown Exits Taken 9 | 1 1 1 1 . . . . . 1 1 . . . . . 1 1 1 . . Scrap Searched 8 | . . 1 . 2 . . . . . 2 . . . . . . 2 1 . . Spaces Dug 25 | . . . . . . . . . . . 2 . 4 . . . 1 . 2 16 Terrain Destroyed 379 | . 5 27 . 72 27 1 . 30 2 . 43 11 14 4 1 . 1 . 51 90 Melee 24 | . . . . . . . . . . . 2 . 3 . . . 1 . 2 16 Projectile 37 | . . . . 4 . 1 . 9 2 . 5 . 11 4 1 . . . . . AOE 318 | . 5 27 . 68 27 . . 21 . . 36 11 . . . . . . 49 74 Terrain Rammed . | . . . . . . . . . . . . . . . . . . . . . Walls Destroyed . | . . . . . . . . . . . . . . . . . . . . . Machines Disabled . | . . . . . . . . . . . . . . . . . . . . . Actions | -11 -10 -10 -10 -9 -8 -8 -8 -8 -8 -8 -6 -6 -6 -5 -5 -5 -5 -5 -4 -3 --------- Run | Yrd Mat Min Exi Min Mat Gar Mat Sto Rec Scr Fac Was Fac Fac Was Fac Upp Upp Fac Res Total 8292 | 114 774 138 217 499 58 713 294 139 231 227 953 131 821 137 289 235 255 51 515 1501 Wait 595 | 11 162 3 . 7 . 22 12 2 6 8 66 7 31 28 20 20 25 11 12 142 Move 6908 | 73 554 120 216 450 44 581 263 114 145 213 787 118 702 86 265 209 225 40 446 1257 Hop 7 | . . . . . . . . . . . . . . . . . . . 1 6 Pick Up 85 | 4 18 . 1 2 . 12 4 1 . 2 15 . 8 2 1 2 1 . 5 7 Fast Attach 57 | 5 2 . . 1 . 2 1 6 . 2 7 1 14 1 . 1 . . 11 3 Attach 62 | 1 3 1 . 1 5 7 . 1 . . 19 . 4 4 . . . . 4 12 Detach 18 | 2 . . . . 1 1 . . . . 1 . . 2 . . . . 4 7 Swap 65 | 1 7 2 . 8 3 4 4 1 . . 8 . 10 5 1 . 2 . 7 2 Drop 77 | . 10 . . 2 . . 5 5 . 2 5 5 17 . 2 3 1 . 14 6 Fire 217 | 17 18 12 . 27 5 57 5 9 . . 18 . 29 9 . . . . 6 5 Melee 91 | . . . . . . . . . . . 27 . 4 . . . 1 . 5 54 Ram . | . . . . . . . . . . . . . . . . . . . . . Kick . | . . . . . . . . . . . . . . . . . . . . . Crush . | . . . . . . . . . . . . . . . . . . . . . Escape Stasis 12 | . . . . . . 12 . . . . . . . . . . . . . . Rewire 96 | . . . . 1 . 15 . . 80 . . . . . . . . . . . Trap 2 | . . . . . . . . . . . . . 2 . . . . . . . Miscellaneous . | . . . . . . . . . . . . . . . . . . . . . Route ------- -11/Scrapyard -10/Materials (discovered 3 exits: [*Mat] / [*Min] / [*Sub]) -10/Mines -10/Exiles (discovered 2 exits: *Min x2) -9/Mines -8/Materials (discovered 2 exits: Fac / Gar) -8/Garrison (discovered 2 exits: *Mat x2) -8/Materials -8/Storage (discovered 2 exits: Fac / *Rec) -8/Recycling -8/Scraptown -6/Factory (discovered 2 exits: Fac / Low) -6/Waste -6/Factory (discovered 3 exits: *Fac x2 / Low) -5/Factory -5/Waste -5/Factory -5/Upper Caves -5/Upper Caves -4/Factory -3/Research (discovered 3 exits: Res / *Arm / *Tes) History --------- Turn | Location | Event 6 | -11/Scrapyard | Discovered new exit (range 15) 136 | -11/Scrapyard | Entered Materials 160 | -10/Materials | Discovered new exit (range 7) 300 | -10/Materials | Build established: Mutant 749 | -10/Materials | Discovered new exit (range 5) 810 | -10/Materials | Prayed at D.C.S.S. Altar Unit 829 | -10/Materials | Discovered new exit (range 16) 1012 | -10/Materials | Core integrity permanently improved by X0-1V1 (+200) 1016 | -10/Materials | X0-1V1 announced a LAN party 1087 | -10/Materials | Entered Mines 1107 | -10/Mines | Met a Derelict bent on vengeance 1231 | -10/Mines | X0-1V1 activates XOMVISION 1244 | -10/Mines | Utility slot count permanently improved by X0-1V1 (+1) 1312 | -10/Mines | Deemed a non-threat by the Exiles lab entrance 1314 | -10/Mines | Discovered new exit (range 5) 1320 | -10/Mines | Entered Exiles 1341 | -10/Exiles | Discovered new exit (range 15) 1360 | -10/Exiles | Met 8R-AWN 1386 | -10/Exiles | Met EX-HEX 1431 | -10/Exiles | Met EX-BIN 1453 | -10/Exiles | Aligned with FarCom system 1455 | -10/Exiles | Given EX-Vault access code 1493 | -10/Exiles | Opened EX-Vault 1508 | -10/Exiles | Found 0b10 Alert Chip 1550 | -10/Exiles | Warned to stay clear of 0b10 Research branches 1597 | -10/Exiles | Met EX-DEC 1654 | -10/Exiles | Discovered new exit (range 10) 1667 | -10/Exiles | Left Exiles lab with 0b10 Alert Chip 1667 | -10/Exiles | Entered Mines 1674 | -9/Mines | Received a Rocket Launcher from a helpful Derelict 1736 | -9/Mines | Joined a pair of Derelicts in attacking an 0b10 outpost 1834 | -9/Mines | X0-1V1 sent allied S-10 Pest (x2) 1869 | -9/Mines | Lost 3 allies 1880 | -9/Mines | Identified exit to Materials 1891 | -9/Mines | X0-1V1 activates XOMVISION 1974 | -9/Mines | Found a Scrap Suit stashed away for nefarious purposes 2247 | -9/Mines | Met a Derelict who couldn't figure out how to use a Trap Extractor 2599 | -9/Mines | Entered Materials 2599 | -8/Materials | Evolved 4 slots: Propulsion x2, Utility x1, Weapon x1 2600 | -8/Materials | Identified exit to Factory 2635 | -8/Materials | Garrison activated, responded to threat 2689 | -8/Materials | Identified exit to Garrison 2691 | -8/Materials | Entered Garrison 2721 | -8/Garrison | X0-1V1 sent hostile H-55 Commando (x3) 2785 | -8/Garrison | Lost 3 parts (1p2n) 2881 | -8/Garrison | Triggered checkpoint 2890 | -8/Garrison | X0-1V1 downgraded hostiles (x1) 2967 | -8/Garrison | Discovered new exit (range 13) 2990 | -8/Garrison | Attempted to access garrison exit controls, blocked by remote lockdown 3057 | -8/Garrison | Triggered checkpoint 3197 | -8/Garrison | Build established: Scavenger-Skirmisher 3261 | -8/Garrison | Triggered checkpoint 3269 | -8/Garrison | Triggered checkpoint 3301 | -8/Garrison | Installed Relay Interface Framework 3374 | -8/Garrison | Triggered checkpoint 3547 | -8/Garrison | Garrison Relay disabled 3626 | -8/Garrison | Energy generation permanently improved by X0-1V1 (+15) 3754 | -8/Garrison | Discovered new exit (range 9) 3769 | -8/Garrison | Entered Materials 3769 | -8/Materials | Accompanied by 3 allies 3795 | -8/Materials | Identified exit to Storage 4111 | -8/Materials | X0-1V1 activates XOMVISION 4149 | -8/Materials | Expanded RIF knowledge: Command Fork 4164 | -8/Materials | Entered Storage 4164 | -8/Storage | Accompanied by 1 ally 4201 | -8/Storage | Identified exit to Recycling 4201 | -8/Storage | X0-1V1 revealed exit location to -8/Recycling 4214 | -8/Storage | X0-1V1 foreshadows a heat wave 4220 | -8/Storage | Met a pair of Derelict thieves 4269 | -8/Storage | System corruption reached 10% 4295 | -8/Storage | X0-1V1 revealed exit location to -7/Factory 4316 | -8/Storage | Weapon slot count temporarily expanded by X0-1V1 (+3) 4320 | -8/Storage | X0-1V1 turns hostiles against one another 4333 | -8/Storage | X0-1V1 downgraded hostiles (x2) 4372 | -8/Storage | Lost 3 parts (2n1u) 4424 | -8/Storage | Ambient heat levels rising (+10) 4428 | -8/Storage | Used back door to open Recycling access 4435 | -8/Storage | Entered Recycling 4435 | -8/Recycling | Accompanied by 1 ally 4745 | -8/Recycling | Scanned before Scraplab entrance 4772 | -8/Recycling | Entered Scraplab 4787 | -8/Recycling | Discovered new exit (range 2) 4797 | -8/Recycling | Entered Scraptown 4797 | -8/Scraptown | Accompanied by 9 allies 5066 | -8/Scraptown | Turned away by UFD registrar 5088 | -8/Scraptown | Visited Cyclists 5171 | -8/Scraptown | Build established: Commander-Mutant 5202 | -8/Scraptown | Discovered new exit (range 3) 5216 | -8/Scraptown | Entered Factory 5216 | -6/Factory | Accompanied by 9 allies 5216 | -6/Factory | Evolved 4 slots: Utility x3, Weapon x1 5253 | -6/Factory | Identified exit to Factory 5253 | -6/Factory | X0-1V1 revealed exit location to -5/Factory 5395 | -6/Factory | Identified exit to Lower Caves 5395 | -6/Factory | X0-1V1 revealed exit location to -6/Lower Caves 5511 | -6/Factory | Build established: Commander-Gunner 5536 | -6/Factory | X0-1V1 mutated your Propulsion slot to Power slot 5771 | -6/Factory | P-60 Hacker assimilated allied Defender 3b 5811 | -6/Factory | Lost 3 allies 6069 | -6/Factory | Build established: Scavenger-Gunner 6092 | -6/Factory | Lost 3 allies 6202 | -6/Factory | Lost 17 parts (2p6n5u4w) 6340 | -6/Factory | X0-1V1 redirected Transport squads to designated parking area 6669 | -6/Factory | X0-1V1 sent allied Knight (x1) 6727 | -6/Factory | X0-1V1 sent you to a vault 6777 | -6/Factory | Sucked down chute 6777 | -6/Factory | Entered Waste 6787 | -6/Waste | Spotted C-40 Crusher 6792 | -6/Waste | EMP discharged 6792 | -6/Waste | System corruption reached 10% 6799 | -6/Waste | Spotted C-40 Crusher 6799 | -6/Waste | Spotted C-40 Crusher 6799 | -6/Waste | Spotted C-40 Crusher 6799 | -6/Waste | Spotted C-40 Crusher 6799 | -6/Waste | X0-1V1 sent you into danger 6803 | -6/Waste | Crushed by Compactor (1 part destroyed, 2 dropped) 6830 | -6/Waste | Crushed by Compactor (1 part destroyed, 2 dropped) 6833 | -6/Waste | Spotted C-40 Crusher 6842 | -6/Waste | 4 allies followed down the chute 6842 | -6/Waste | Destroyed C-40 Crusher 6856 | -6/Waste | Discovered new exit (range 12) 6861 | -6/Waste | Lost 3 parts (2u1w) 6862 | -6/Waste | Entered Factory 6866 | -6/Factory | X0-1V1 revealed exit location to -5/Factory 6872 | -6/Factory | X0-1V1 sent hostile S-27 Virus (x4) 6936 | -6/Factory | X0-1V1 revealed exit location to -6/Lower Caves 7044 | -6/Factory | X0-1V1 revealed exit location to -5/Factory 7179 | -6/Factory | X0-1V1 sent you to a vault 7184 | -6/Factory | Found Prototype Processor 7184 | -6/Factory | Identified Exp. Melee Analysis Suite 7185 | -6/Factory | X0-1V1 enhanced Transport squad support 7200 | -6/Factory | Found Prototype Protection 7200 | -6/Factory | Identified Med. Regenerative Plating 7323 | -6/Factory | Core integrity fell below 50% 7386 | -6/Factory | Build established: Skirmisher 7670 | -6/Factory | Entered another Factory area 7670 | -5/Factory | Evolved 2 slots: Propulsion x2 7773 | -5/Factory | Lost 3 parts (1p1u1w) 7793 | -5/Factory | Sucked down chute 7793 | -5/Factory | Entered Waste 7794 | -5/Waste | Joined by Warlord forces that had cleared the area 8025 | -5/Waste | Discovered new exit (range 12) 8056 | -5/Waste | Entered Factory 8056 | -5/Factory | Accompanied by 19 allies 8105 | -5/Factory | X0-1V1 added 0b10 threat records associated with you (minor) 8157 | -5/Factory | X0-1V1 released a cloud of subatomizers 8255 | -5/Factory | Discovered new exit (range 6) 8285 | -5/Factory | Entered Upper Caves 8285 | -5/Upper Caves | Accompanied by 17 allies 8303 | -5/Upper Caves | Learned Factory stockpile data 8377 | -5/Upper Caves | Found Scimitar of Distortion 8504 | -5/Upper Caves | Discovered new exit (range 10) 8504 | -5/Upper Caves | X0-1V1 mutated your Utility slot to Propulsion slot 8539 | -5/Upper Caves | Entered another Upper Caves area 8539 | -5/Upper Caves | Accompanied by 17 allies 8552 | -5/Upper Caves | Discovered new exit (range 9) 8556 | -5/Upper Caves | Learned Factory trap positions 8590 | -5/Upper Caves | Entered Factory 8590 | -4/Factory | Accompanied by 13 allies 8590 | -4/Factory | Evolved 2 slots: Utility x2 8591 | -4/Factory | Loaded intel: 112 trap records 8624 | -4/Factory | X0-1V1 sent you to a vault 8655 | -4/Factory | Found Prototype Slashing Weapon 8658 | -4/Factory | Found Prototype Launcher 8659 | -4/Factory | Spotted B-86 Titan 8697 | -4/Factory | Allies destroyed B-86 Titan 8734 | -4/Factory | Identified Hvy. Scimitar of Distortion 8741 | -4/Factory | Lost 5 allies 8911 | -4/Factory | Identified Ragnarok Missile Launcher 8940 | -4/Factory | Lost 4 allies 9005 | -4/Factory | Discovered new exit (range 19) 9028 | -4/Factory | Identified exit to Research 9029 | -4/Factory | Entered Research 9029 | -3/Research | Evolved 2 slots: Propulsion x2 9068 | -3/Research | Discovered new exit (range 6) 9069 | -3/Research | Identified exit to Testing 9122 | -3/Research | Discovered new exit (range 9) 9127 | -3/Research | Identified exit to Armory 9258 | -3/Research | Build established: Scout 9361 | -3/Research | X0-1V1 redirected Transport squads to designated parking area 9377 | -3/Research | X0-1V1 sent hostile Savage (x1) 9451 | -3/Research | Found Femtoactuators 9483 | -3/Research | X0-1V1 added 0b10 threat records associated with you (considerable) 9553 | -3/Research | Identified exit to Research 9553 | -3/Research | X0-1V1 revealed exit location to -2/Research 9557 | -3/Research | X0-1V1 enhanced Transport squad support 9572 | -3/Research | Spotted B-86 Titan 9611 | -3/Research | Core integrity fell below 50% 9612 | -3/Research | Destroyed B-86 Titan 9622 | -3/Research | X0-1V1 upgraded hostiles (x1) 9623 | -3/Research | X0-1V1 sent allied Fireman (x3) 9640 | -3/Research | Core integrity fell below 20% 9652 | -3/Research | P-80 Master assimilated allied FV-V8J(i) 9667 | -3/Research | Lost 14 parts (1p7n6u) 9668 | -3/Research | Weapon slot count temporarily expanded by X0-1V1 (+2) 9674 | -3/Research | System corruption reached 10% 9695 | -3/Research | Destroyed by S-43 Plague with Heavy Machine Gun Last Messages --------------- 09659_ U-05 Engineer lays Concrete. 09659_ Sneak attack on R-10 Processor. A concussive blast radiates from R-10 Processor. 09659_ R-10 Processor destroyed. 09659_ Destroyed Welding Torch. 09659_ U-05 Engineer knocked back. 09659_ Knocked back. 09660_ ALERT: Construction progress impeded, dispatching reinforcements to local area. 09661_ The unstable cave ceiling collapses. 09668_ X0-1V1: "Weapons, camera, action!" (+2 weapon slots) 09671_ System corrupted: Matter fused (-10). 09673_ X0-1V1 brushes you with a corrupting influence (+9 system corruption). X0-1V1's Piety Tracker suddenly appears amidst shimmering waves of color. 09677_ S-43 Plague destroyed. 09684_ X0-1V1 points here and there (16 item locations revealed). 09685_ Hvy. Scimitar of Distortion destroyed. P-80 Master form shifts and blurs. 09689_ Scimitar of Distortion destroyed. 09694_ System corrupted: Matter fused (-9). 09695_ X0-1V1 chuckles heartily! Map ----- +----------------------------------------------------+ | ?????????????????????????????????????????????????? | | ????????????????????????????????????????????????!? | | ???????????????]?????????????????????????????????? | | ??????????????????????????????????????????]??????? | | ??????????????!??????????????????!???????????????? | | ?????????????????????????????????????????????????? | | ?????????????????????????????????????????????????? | | ?????????????????????????=???????????????????????? | | ?????????????????????????????????????????????????? | | ?????????????????????????????????????????????????? | | ?????????????????????????????????????????????????? | | ?????????????????????????????????????????????????? | | ?????????????????????o ?????????????????????????? | | ???????????????????# ?????????????????????????? | | ???????????????????# ?????????????????????????? | | ???????????????????# ?????????????????????????? | | ???????????????????# ?????????????????????????? | | ?????????????!?????# ?????????????????????????? | | ???????????????????# ??????????????????????#### | | ???????????????????# #????????????????????? | | ???????????????????# ###########??????????? | | ?????????? ????????#! # #??????????? | | ?????????? ###+### # #??????????# | | ?????????%= # #??????????# | | ??????[=?*[ # #??????????# | | ????????= #@ #???*??????# | | ????????? s !#??????????# | | ????????????????+### p# #??????????# | | ???????????????????# # / #??????????# | | ??????????????????!# ###################### | | ???????????????????# | | ???????????????????# | | ???????????????????# | | ???????????????????# | | ???????????????????# ########## ######## | | ??????????????]????# #????????# #??????# ! | | ???????????????????# #????????# ######## | | ???????????????????# #????????# # | | ???????????????????# ?????????# | | ???????????????????# ???|?????# # | | ???????????????????# ?????????# | | ???????????????????# ?????????####### % | | ???!???????????????# ???????????????# | | ???????????????????# ?????????####### | | ???????????????????? ????????## | | ?????????????????????? ?????????+ % % | | ?????????????????????????????????# %% = ! | | ?????????????????????????????????# % ##### | | ????????????/????????????????????# ####+#+#???? | | ?????????????????????????????=???# ????? ????? | +----------------------------------------------------+ Best States ------------- Heat Dissipation 109 Energy Generation 58 Energy Capacity 1665 Matter Stores 729 Matter Capacity 1000 Sight Range 22 Terrain Scan Range 16 Terrain Scan Density 210 Corruption Block 20 Armor Coverage 225 Core Shielding 30 Weapon Cycling 15 Melee Speed Boost 50 Phase Shifting 10 Evasion (%) 87 Targeting Accuracy 16 Melee Accuracy 8 Target Analysis 8 Core Analysis 9 Armor Integrity Analysis 30 Recoil Reduction 4 Item Schematics ----------------- None Robot Schematics ------------------ None Fabricated ------------ Nothing Repaired ---------- Nothing Studied --------- Com. Wheel | -6/Factory | Hacked Power Maul | -6/Factory | Hacked Hvy. Mace | -6/Factory | Hacked Gravmag Array | -6/Factory | Hacked Impulse Thruster | -3/Research | Hacked Alien Tech Used ----------------- None Achievements -------------- None Challenges ------------ None Game ------ Seed HardcellSmartbombClaw Manual? 0 Play Time 02:39:08 Cumulative 313.2 hours Start 2026.06.23 @ 00:38:34 End 2026.06.23 @ 10:52:17 Sessions 1 Manual Loads 0 Difficulty Rogue Special Mode None Game No. 138 Rogue 138 Adventurer 0 Explorer 0 Win Type - Total 5 Types 5/0/0/0/0/0/0/0/0/0 Lore% 55 Gallery% 55 Achievement% 43 Wizard Run 0 Options --------- Layout 0 ASCII 0 Keyboard 0 Movement Numpad Keybinds 0 Fullscreen 2 Font 24/Smallcaps Map View 113x50 Zoom Use 0% Tactical HUD 1 Map Filters NONE Filters NONE Steam 1 RUN: 9f751a6d-e403-4a63-91db-be3889505753